Cogmind - Beta 16.1 @@@ ROGUE MODE // 2026.05.03 @ 15:55:36 Player: SC-U7L Result: Self-destructed Performance ------------- Evolutions (8) 4000 Regions Visited (17) 3400 Robots Destroyed (270) 1350 Value Destroyed (11006) 11006 Prototype IDs (60) 1200 Alien Tech Used (5) 1000 Bonus (4742) 4742 TOTAL SCORE: 26698 Bonus ------- High Alert Combat Kills 718 Follower Combat Kills 524 Aligned with FarCom 300 Found Hidden Lab 3000 Scanned by Researcher 500 Friendly Fire -300 Cogmind --------- Core Integrity 1428/1450 Matter 27/300 Energy 440/440 System Corruption 0% Temperature Cool (0) Movement Flying (780) Ox9 Location -2/Research Parts ------- > --- POWER (2) -------- Quantum Reactor Light Quantum Reactor > --- PROPULSION (6) --- Experimental Myomer Leg Experimental Myomer Leg Xenon Bombardment Thruster > --- UTILITY (11) ----- Advanced Heat Sink Spectral Analyzer Advanced Sensor Array Advanced Signal Interpreter Advanced Targeting Computer Centrium Medium Armor Plating > --- WEAPON (5) ------- Enhanced Quantum Rifle Matter Neutralizer > --- INVENTORY (5) ---- Advanced Weapon Cycler Phase Redirector Peak State ------------ > --- POWER ------------ Light Particle Reactor > --- PROPULSION ------- Heavy Armored Exoskeleton Experimental Myomer Leg Experimental Myomer Leg > --- UTILITY ---------- Advanced Heat Sink Advanced Heat Sink Spectral Analyzer Advanced Signal Interpreter Advanced Targeting Computer Advanced Weapon Cycler Centrium Medium Armor Plating Phase Redirector Deep Network Scanner > --- WEAPON ----------- Quantum Rifle Fusion Bomb Launcher Core Stripper > --- INVENTORY -------- Advanced Sensor Array [Rating: 170] Favorites ----------- Power F-cell Engine Engine F-cell Engine Power Core Light Neutrino Core Reactor Antimatter Reactor Propulsion Compact Wheel Treads Heavy Siege Treads Leg Experimental Myomer Leg Wheel Compact Wheel Flight Unit Improved VTOL Module Utility Advanced Heat Sink Device Advanced Heat Sink Storage High-capacity Storage Unit Processor Advanced Targeting Computer Hackware Deep Network Scanner Protection Hardened Medium Armor Plating Artifact Phase Redirector Weapon XL Autogun Subcomponent Energy Gun Gamma Rifle Energy Cannon Enhanced Nova Cannon Ballistic Gun XL Autogun Subcomponent Launcher Fusion Bomb Launcher Special Weapon Improved Remote Datajack Impact Weapon Core Stripper Slashing Weapon Sigix Broadsword Special Melee Weapon Advanced Datajack Build | -11 -10 -10 -10 -9 -8 -8 -8 -8 -6 -6 -5 -4 -4 -4 -3 -3 -2 ------- Run | Yrd Mat Min Exi Min Mat Sto Rec Scr Fac Ext Fac Fac Arm Lab Res Qua Res Slots Evolved 16 | . . . . . 4 . . . 4 . 2 2 . . 2 . 2 Power 1 | . . . . . . . . . . . . 1 . . . . . Propulsion 4 | . . . . . 2 . . . 1 . 1 . . . . . . Utility 9 | . . . . . 2 . . . 1 . 1 1 . . 2 . 2 Weapon 2 | . . . . . . . . . 2 . . . . . . . . Parts Attached 187 | 2 2 5 1 1 38 16 . 1 19 2 9 18 4 . 22 42 5 Power 22 | . . 1 . . 2 5 . . 3 . . 2 1 . 1 5 2 Engine 6 | . . 1 . . 2 2 . . 1 . . . . . . . . Core 6 | . . . . . . 3 . . 1 . . 2 . . . . . Reactor 10 | . . . . . . . . . 1 . . . 1 . 1 5 2 Propulsion 43 | 2 . . . . 14 2 . . 5 . 1 4 1 . 5 8 1 Treads 16 | 1 . . . . 10 1 . . . . . 2 1 . 1 . . Leg 5 | . . . . . . . . . . . . . . . . 5 . Wheel 8 | 1 . . . . 4 . . . . . . 2 . . 1 . . Hover . | . . . . . . . . . . . . . . . . . . Flight 14 | . . . . . . 1 . . 5 . 1 . . . 3 3 1 Utility 68 | . 2 2 . . 14 4 . . 7 2 5 5 1 . 11 15 . Device 34 | . . 2 . . 5 3 . . 4 1 2 2 1 . 5 9 . Storage 7 | . 1 . . . 1 . . . . . . 2 . . 1 2 . Processor 10 | . . . . . 2 . . . 1 . 3 . . . 2 2 . Hackware 4 | . . . . . . . . . 1 1 . 1 . . 1 . . Protection 12 | . 1 . . . 6 1 . . 1 . . . . . 2 1 . Artifact 1 | . . . . . . . . . . . . . . . . 1 . Weapon 54 | . . 2 1 1 8 5 . 1 4 . 3 7 1 . 5 14 2 Energy Gun 16 | . . 2 . . . . . . . . . . . . 3 10 1 Energy Cannon 4 | . . . . . . 1 . . . . 1 . 1 . . . 1 Ballistic Gun 27 | . . . . 1 8 4 . . 4 . 1 6 . . 2 1 . Ballistic Cannon . | . . . . . . . . . . . . . . . . . . Launcher 2 | . . . 1 . . . . . . . . . . . . 1 . Special Weapon 2 | . . . . . . . . 1 . . 1 . . . . . . Impact Weapon 1 | . . . . . . . . . . . . . . . . 1 . Slashing Weapon 1 | . . . . . . . . . . . . . . . . 1 . Piercing Weapon . | . . . . . . . . . . . . . . . . . . Special Melee Weapon 1 | . . . . . . . . . . . . 1 . . . . . Unidentified Prototypes 26 | . . 1 . . 1 3 . . 3 . 1 2 . . 7 8 . Corrupted Parts 1 | . . . . . . . . . . . . 1 . . . . . System Corruption 2 | . . . . . . . . . . . . 2 . . . . . Parts Lost 39 | . . 1 . . 3 1 . . . . . 1 . . 10 22 1 Power 7 | . . 1 . . . 1 . . . . . . . . 1 4 . Propulsion 6 | . . . . . . . . . . . . 1 . . 2 3 . Utility 12 | . . . . . 3 . . . . . . . . . 2 6 1 Weapon 14 | . . . . . . . . . . . . . . . 5 9 . Highest Loss Streak 7 | . . 1 . . 1 1 . . . . . 1 . . 5 7 1 To Critical Strikes 2 | . . . . . . . . . . . . . . . . 2 . Average Backups 9 | 6 5 7 7 8 14 17 17 17 5 4 4 5 8 8 6 3 2 Power . | 1 1 . . . . . . . . 1 1 . . . . . . Propulsion 3 | 4 2 4 4 4 7 5 5 5 . 1 . 1 2 2 1 . . Utility 3 | . . 1 1 1 2 5 6 7 3 2 2 2 2 3 5 1 2 Weapon 2 | 1 1 1 2 3 3 5 5 5 . . . 1 3 2 . 1 . Tool/Special . | . . . . . . . . . . . . . . . . . . Unused Backups 35 | . 2 2 1 . 6 8 . . 6 1 1 2 1 2 3 . . Power 3 | . . . . . 2 . . . . . . 1 . . . . . Propulsion 11 | . . . . . 3 5 . . . . . 1 1 1 . . . Utility 16 | . 2 . 1 . . 3 . . 6 . . . . 1 3 . . Weapon 3 | . . 2 . . 1 . . . . . . . . . . . . Tool/Special 2 | . . . . . . . . . . 1 1 . . . . . . Average Slot Usage (%) 87 | . 87 100 100 100 94 99 100 100 80 80 80 75 88 86 81 68 49 Engine 6 | . 14 14 14 14 9 4 9 9 2 6 5 5 5 5 3 . . Core 1 | . . . . . . 3 . . 2 . . 5 4 . . . . Reactor 1 | . . . . . . . . . 1 . . . . 5 4 6 4 Treads 9 | . 14 14 14 14 17 18 18 18 . . . 7 10 7 7 . . Leg 1 | . . . . . . . . . . . . . . . . 9 11 Wheel 10 | . 14 14 14 14 17 18 18 18 . . . 7 10 10 9 . . Flight 5 | . . . . . . . . . 31 33 35 7 . . . 4 . Device 11 | . . 7 . . 8 9 9 9 17 20 18 12 14 15 12 16 7 Storage 6 | . 14 14 14 14 9 9 9 9 . . . 6 5 5 3 . . Processor 9 | . . . . . 6 9 9 9 6 6 11 15 15 15 13 11 12 Protection 5 | . 2 6 14 14 8 9 9 9 6 6 2 1 . . 3 1 4 Energy Gun 2 | . . 12 14 14 1 . . . . . . . . . 1 8 . Ballistic Gun 12 | . 28 15 10 14 15 17 18 18 8 6 4 6 19 16 11 1 . Peak Build Rating 170 | 6 7 16 12 11 33 37 36 36 86 88 99 123 123 120 146 170 132 Average Rating 75 | 6 6 9 9 11 24 34 36 35 77 85 93 111 115 111 132 134 114 On Entrance 55 | 6 6 7 8 12 11 32 36 36 36 85 86 96 111 123 106 116 94 Avg Prop Armor Cover (%) 12 | . 12 11 9 10 15 15 15 15 . . 1 20 22 14 14 4 7 Naked Turns . | . . . . . . . . . . . . . . . . . . Heaviest Build 99 | 11 29 31 33 31 62 63 60 60 61 32 33 50 77 67 99 68 60 Greatest Support 145 | 20 16 16 16 16 32 32 32 32 41 41 42 82 32 145 70 143 90 Greatest Overweight (x) 3 | . 1 1 2 1 2 3 1 1 1 . . 1 2 1 3 1 . Average Overweight (x) . | . . 1 1 1 1 1 1 1 . . . . 1 . 1 . . Largest Inventory Capacity 20 | 8 15 15 15 15 20 20 20 20 20 5 5 10 10 10 15 5 5 Average Capacity 12 | 8 14 15 15 15 19 20 20 20 6 5 5 8 10 10 13 5 5 Most Carried 20 | 6 7 9 12 14 20 20 20 20 20 5 5 10 10 10 11 5 4 Average Carried 10 | 5 5 7 8 11 17 19 19 20 5 4 4 6 9 9 9 3 2 Final Capacity 20 | 8 15 15 15 15 20 20 20 20 5 5 5 10 10 10 5 5 5 Final Carried 20 | 4 7 7 11 14 20 20 20 20 5 5 5 10 10 10 5 4 2 Class Distribution -------------------- 35% | Mutant 13% | Skirmisher 10% | Sprinter 9% | Scavenger-Mutant 5% | Hacker-Skirmisher 5% | Hacker-Mutant 4% | Tank 3% | Hacker-Tank 3% | Scout Dominant Class ---------------- Mutant | -10/Materials Mutant | -10/Mines Mutant | -10/Exiles Mutant | -9/Mines Scavenger-Mutant | -8/Materials Mutant | -8/Storage Mutant | -8/Recycling Mutant | -8/Scraptown Sprinter | -6/Factory Sprinter | -6/Extension Sprinter | -5/Factory Skirmisher | -4/Factory Skirmisher | -4/Armory Skirmisher | -4/Lab Hacker-Skirmisher | -3/Research Hacker-Mutant | -3/Quarantine Hacker-Mutant | -2/Research Resources | -11 -10 -10 -10 -9 -8 -8 -8 -8 -6 -6 -5 -4 -4 -4 -3 -3 -2 ----------- Run | Yrd Mat Min Exi Min Mat Sto Rec Scr Fac Ext Fac Fac Arm Lab Res Qua Res Matter Collected 10477 | 200 . 128 . 24 1233 1485 15 20 651 890 1422 1197 1407 . 1174 631 . Remotely 1839 | . . . . . . . . . . . . 328 637 . 874 . . Salvage Created 14219 | . 17 175 . 91 1767 1746 72 . 901 1185 1807 1502 1881 . 1716 1213 146 Parts 661 | . 2 13 . 9 91 79 5 . 28 60 61 57 88 . 82 77 9 Haulers Intercepted 24 | . . . . . 3 5 . . 4 . 7 2 . . 1 1 1 Recyclers Shooed 6 | . . . . . 2 1 . . . . . 2 . . . . 1 Parts Field Recycled . | . . . . . . . . . . . . . . . . . . Retrieved Matter . | . . . . . . . . . . . . . . . . . . Parts Self-Destructed . | . . . . . . . . . . . . . . . . . . Prevented . | . . . . . . . . . . . . . . . . . . Parts Restored . | . . . . . . . . . . . . . . . . . . Kills | -11 -10 -10 -10 -9 -8 -8 -8 -8 -6 -6 -5 -4 -4 -4 -3 -3 -2 ------- Run | Yrd Mat Min Exi Min Mat Sto Rec Scr Fac Ext Fac Fac Arm Lab Res Qua Res Combat Hostiles Destroyed 185 | . . 4 . 4 28 23 . . 8 12 17 11 33 . 21 22 2 Guns 163 | . . 4 . 4 26 23 . . 8 12 17 11 33 . 15 10 . Cannons 10 | . . . . . . . . . . . . . . . 5 3 2 AOE 7 | . . . . . 2 . . . . . . . . . . 5 . Classes Destroyed 20 | . 1 2 . 2 7 1 . . 1 1 . . 3 . . 2 . Worker 17 | . . . . 1 5 5 . . . . 1 1 . . 3 1 . Builder 7 | . . . . . 2 . 1 . . 2 . . . . . 2 . Tunneler 2 | . . 1 . . . . . . . 1 . . . . . . . Hauler 24 | . . . . . 3 5 . . 4 . 7 2 . . 1 1 1 Recycler 14 | . . . . . 3 2 1 . 1 2 2 3 . . . . . Mechanic 1 | . . . . . 1 . . . . . . . . . . . . Operator 6 | . 1 . . . 1 . . . . 2 . 1 . . 1 . . Watcher 11 | . . . . . . 2 . . 2 1 2 2 2 . . . . Swarmer 47 | . . . . 4 7 2 . . 4 2 9 . 12 . . 5 2 Grunt 64 | . . 4 . . 11 11 . . 2 7 6 1 7 . 10 5 . Brawler 5 | . . . . . 1 2 . . 1 . . . . . 1 . . Duelist 3 | . . . . . . . . . . . . . 3 . . . . Protector 1 | . . . . . . . . . . . . . 1 . . . . Researcher 1 | . . . . . . . . . . . . . . . . 1 . Sentry 26 | . . . . . 7 8 . . . 2 . 6 2 . 1 . . Specialist 2 | . . . . . . . . . . . . . 2 . . . . Hunter 7 | . . . . . 2 . . . . . . . 4 . . 1 . Programmer 29 | . . . . . . . . . 1 . 2 4 3 . 9 10 . Behemoth 1 | . . . . . . . . . . 1 . . . . . . . Alpha 7 1 | . . . . . . . . . . . . . . . . 1 . Guerrilla 1 | . . . . . . . . . . 1 . . . . . . . Best Kill Streak 10 | . 1 2 . 5 7 10 2 . 4 9 6 4 5 . 6 8 2 Combat Bots Only 8 | . . 2 . 4 4 5 . . 4 8 6 4 5 . 6 8 2 Max Kills in Single Turn 2 | . 1 1 . 2 2 1 2 . 1 2 2 1 2 . 1 2 1 Gunslinging 1 | . . . . 1 . . . . . . . . 1 . . . . Exploded 2 | . . . . . 1 . . . . . . . . . . 2 . Melee . | . . . . . . . . . . . . . . . . . . Uniques/NPCs Destroyed . | . . . . . . . . . . . . . . . . . . Combat | -11 -10 -10 -10 -9 -8 -8 -8 -8 -6 -6 -5 -4 -4 -4 -3 -3 -2 -------- Run | Yrd Mat Min Exi Min Mat Sto Rec Scr Fac Ext Fac Fac Arm Lab Res Qua Res Hostile Shots Fired 1295 | . . 39 . 12 148 82 . . 9 8 30 26 167 . 308 447 19 Missed 456 | . . 12 . 4 41 23 . . 6 4 18 8 55 . 94 185 6 Hits 839 | . . 27 . 8 107 59 . . 3 4 12 18 112 . 214 262 13 Melee 7 | . . . . . 2 3 . . . . . . 1 . 1 . . Projectile 832 | . . 27 . 8 105 56 . . 3 4 12 18 111 . 213 262 13 AOE 1 | . . . . . . . . . . . . . 1 . . . . Critical Strikes 47 | . . 1 . . 5 3 . . . . . 2 2 . 17 17 . Part Disruptions 1 | . . . . . . . . . . . . . . . . 1 . Damage Taken 13667 | . 42 362 . 64 1254 937 . . 79 100 225 483 1093 . 3459 5287 282 Core 1381 | . 14 25 . 9 172 149 . . . . . . 85 . 203 702 22 Absorbed by Shields 1820 | . . . . . 266 . . . . . . . 701 . 853 . . Reduced by Siege Mode 419 | . . . . . . . . . . . . 48 99 . 272 . . Redirected to Core 59 | . . . . . . . . . . . . . . . . 59 . Regen/Repaired (Parts) 457 | . . . . . 28 . . . 17 . . . . . 355 57 . Core Remaining (%) 77 | 100 . . . 80 . . . 41 . 100 100 . . 92 . 30 . Volleys Fired 882 | . 5 21 2 4 130 132 2 . 26 58 85 58 114 20 113 94 18 Largest 4 | . 2 2 1 2 2 2 2 . 4 1 1 2 4 2 4 4 2 Hottest 364 | . 40 85 33 60 60 75 50 . 100 60 90 70 120 140 240 364 170 Shots Fired 1698 | . 10 42 2 8 254 251 3 . 29 58 85 61 368 29 288 190 20 Gun 1491 | . 10 42 . 8 250 238 3 . 29 58 81 61 339 9 220 141 2 Cannon 180 | . . . . . . 12 . . . . 3 . 29 20 68 30 18 Launcher 26 | . . . 2 . 4 1 . . . . . . . . . 19 . Special 1 | . . . . . . . . . . . 1 . . . . . . Kinetic 1319 | . 10 28 . 4 231 238 3 . 29 58 81 61 339 9 198 30 . Thermal 289 | . . 14 . 4 19 12 . . . . 3 . 29 20 68 100 20 Explosive 26 | . . . 2 . 4 1 . . . . . . . . . 19 . Electromagnetic 63 | . . . . . . . . . . . . . . . 22 41 . Robot Hit Streak 27 | . 2 10 . 9 15 20 2 . 10 7 11 21 24 . 27 14 8 Robot Miss Streak 12 | . 3 1 . 1 4 3 1 . 5 12 5 4 4 . 3 4 3 Penetration Max 2 | . . . . . . . . . . . . . . . . 2 . Secondary Targets 19 | . . 1 . 1 2 2 . . . . . . 9 . 3 1 . Max Gunslinging Chain 1 | . . 1 . 1 1 1 . . . . . . 1 . 1 1 . Shots Hit Robots 1126 | . 3 32 . 7 172 149 1 . 26 42 63 61 236 . 213 112 9 Core Hits 550 | . 2 10 . 5 79 59 2 . 27 45 49 50 102 . 66 50 4 Critical Kills 3 | . . . . . 1 2 . . . . . . . . . . . Critical Parts Destroyed 5 | . . 1 . . 1 1 . . . . . . . . 1 1 . Critical Strikes 13 | . . 1 . . 2 3 . . . . . . . . 2 5 . Burn 3 | . . . . . . . . . . . . . . . . 3 . Meltdown 1 | . . . . . . 1 . . . . . . . . . . . Destroy 7 | . . 1 . . 2 2 . . . . . . . . 1 1 . Corrupt 2 | . . . . . . . . . . . . . . . 1 1 . Melee Attacks 4 | . . . . . . . . . . . . 1 . . . 3 . Impact . | . . . . . . . . . . . . . . . . . . Slashing 3 | . . . . . . . . . . . . . . . . 3 . Piercing . | . . . . . . . . . . . . . . . . . . Sneak Attacks 1 | . . . . . . . . . . . . 1 . . . . . Combat Hostiles . | . . . . . . . . . . . . . . . . . . Follow-up Attacks . | . . . . . . . . . . . . . . . . . . Damage Inflicted 32480 | . 36 421 . 80 2846 2530 37 . 1293 2741 3212 3686 4789 . 5696 4755 358 Guns 27116 | . 36 421 . 80 2534 2405 37 . 1293 2565 3212 3686 4789 . 3768 2290 . Cannons 3016 | . . . . . . 125 . . . . . . . . 1784 749 358 Explosions 2219 | . . . . . 312 . . . . 176 . . . . 144 1587 . Melee 108 | . . . . . . . . . . . . . . . . 108 . Ramming 21 | . . . . . . . . . . . . . . . . 21 . Kinetic 24719 | . 36 245 . 48 2390 2405 37 . 1293 2565 3212 3686 4789 . 3349 664 . Thermal 4728 | . . 176 . 32 144 125 . . . 176 . . . . 1928 1789 358 Explosive 1899 | . . . . . 312 . . . . . . . . . . 1587 . Electromagnetic 1005 | . . . . . . . . . . . . . . . 419 586 . Impact . | . . . . . . . . . . . . . . . . . . Slashing 108 | . . . . . . . . . . . . . . . . 108 . Piercing . | . . . . . . . . . . . . . . . . . . Highest Corruption 28 | . . . . . 3 8 8 . . . . 4 4 4 11 28 . Average Corruption 7 | . . . . . 3 3 8 . . . . 2 4 4 7 21 . Corruption Purged . | . . . . . . . . . . . . . . . . . . Corruption Blocked . | . . . . . . . . . . . . . . . . . . Effects 198 | . . . . . 10 22 17 . . . . 13 36 3 34 63 . Message Errors 41 | . . . . . 1 8 4 . . . . 5 5 1 6 11 . Matter Fused 40 | . . . . . 2 4 3 . . . . 2 7 . 8 14 . Heat Flow Errors 32 | . . . . . 2 5 4 . . . . 1 7 . 4 9 . Energy Discharges 17 | . . . . . . . 1 . . . . 2 4 . 3 7 . Parts Rejected 4 | . . . . . . . . . . . . . . . 1 3 . Data Loss (minor) 21 | . . . . . 3 . 3 . . . . 1 2 1 6 5 . Data Loss (major) 7 | . . . . . . 2 1 . . . . 1 . . 1 2 . Misfires 7 | . . . . . . 1 . . . . . . 4 1 . 1 . Alerts 4 | . . . . . . 1 . . . . . . 2 . 1 . . Misdirections 5 | . . . . . . . . . . . . . . . . 5 . Weapon Failures 20 | . . . . . 2 1 1 . . . . 1 5 . 4 6 . Overload Shots . | . . . . . . . . . . . . . . . . . . Overflow Damage 279 | . . . . . 10 . . . . 24 . . . . 95 150 . Projectiles 129 | . . . . . . . . . . . . . . . 92 37 . Explosions 150 | . . . . . 10 . . . . 24 . . . . 3 113 . Melee . | . . . . . . . . . . . . . . . . . . Knockbacks . | . . . . . . . . . . . . . . . . . . Impact . | . . . . . . . . . . . . . . . . . . Kinetic . | . . . . . . . . . . . . . . . . . . Secondary . | . . . . . . . . . . . . . . . . . . Self-Inflicted Damage 292 | . . . . . . . . . . . . . . . . 292 . Shots 6 | . . . . . . . . . . . . . . . . 6 . Rammed . | . . . . . . . . . . . . . . . . . . Targets Rammed 2 | . . . . . . . . . . . . . . . . 2 . Kicked 2 | . . . . . . . . . . . . . . . . 2 . Crushed . | . . . . . . . . . . . . . . . . . . Highest Temperature 379 | . . 33 . 18 247 255 234 . 232 217 121 219 306 246 379 368 54 Average Temperature 77 | . . 13 . 7 24 48 102 . 53 66 41 48 99 82 118 111 28 Received Heat Transfer 2119 | . . 225 . . 454 396 . . 18 9 36 36 162 . 606 177 . Effects 11 | . . . . . . . . . . . . 1 3 . 6 1 . Shutdowns 1 | . . . . . . . . . . . . . . . . 1 . Energy Bleed 2 | . . . . . . . . . . . . 1 . . 1 . . Interference 8 | . . . . . . . . . . . . . 3 . 5 . . Siege Activations 28 | . . . . . . . . . . . . 5 14 . 9 . . Total Turns 435 | . . . . . . . . . . . . 72 177 . 186 . . Longest Duration 36 | . . . . . . . . . . . . 27 36 . 34 . . Martial Activations . | . . . . . . . . . . . . . . . . . . Shielding Activations . | . . . . . . . . . . . . . . . . . . Robots Disrupted . | . . . . . . . . . . . . . . . . . . Combat Hostiles . | . . . . . . . . . . . . . . . . . . Robots Corrupted 2 | . . . . . . . . . . . . . . . 1 1 . Combat Hostiles 2 | . . . . . . . . . . . . . . . 1 1 . Parts Fried 10 | . . . . . . . . . . . . . . . 5 5 . Impact Corruptions . | . . . . . . . . . . . . . . . . . . Robots Melted 2 | . . . . . . 1 . . . . . . . . . 1 . Combat Hostiles 1 | . . . . . . . . . . . . . . . . 1 . Parts Melted 8 | . . . . . . 2 . . . . . . . . . 6 . Heat Transferred 6111 | . . 420 . 75 325 185 . . . 50 . . . . 1593 3093 370 Parts Sabotaged . | . . . . . . . . . . . . . . . . . . Parts Stolen . | . . . . . . . . . . . . . . . . . . Parts Stripped . | . . . . . . . . . . . . . . . . . . Power Chain Reactions 1 | . . . . . . . . . . . . . . . 1 . . Alert | -11 -10 -10 -10 -9 -8 -8 -8 -8 -6 -6 -5 -4 -4 -4 -3 -3 -2 ------- Run | Yrd Mat Min Exi Min Mat Sto Rec Scr Fac Ext Fac Fac Arm Lab Res Qua Res Maximum Alert Level 3 | . . . . . 2 2 1 . 1 1 2 2 3 . 1 2 1 Low Security (%) 49 | 100 100 100 . 100 58 12 95 . 78 91 22 4 17 . 84 39 . Level 1 33 | . . . . . 35 76 4 . 21 8 38 80 7 . 15 38 100 Level 2 13 | . . . . . 5 10 . . . . 38 15 43 . . 22 . Level 3 3 | . . . . . . . . . . . . . 31 . . . . Level 4 . | . . . . . . . . . . . . . . . . . . Level 5 . | . . . . . . . . . . . . . . . . . . High Security . | . . . . . . . . . . . . . . . . . . Max Security . | . . . . . . . . . . . . . . . . . . Peak Influence 1036 | . 5 50 . 95 441 463 217 . 244 279 690 446 1036 . 344 693 364 Initial 364 | . . . . . 33 183 176 . . 119 132 282 202 . . 191 364 Average 242 | . . 8 . 26 181 267 168 . 107 149 377 275 580 . 104 287 329 Influence Increases 7884 | . 9 105 . 95 925 796 201 . 436 462 864 492 1464 . 848 1112 75 Destroy 0b10 Robot/C 3920 | . . 80 . 80 560 460 . . 160 260 340 220 840 . 420 460 40 Destroy 0b10 Robot/NC 430 | . 5 5 . 5 75 70 10 . 35 45 60 45 25 . 25 20 5 Destroy Leader 864 | . . 20 . 10 156 124 . . 42 32 58 88 168 . 82 72 12 Allied During Kill 256 | . . . . . . . . . . 8 . . 248 . . . . Successful Hack 310 | . 4 . . . 41 33 11 . 45 28 42 25 . . 81 . . Select Force Hacks 210 | . . . . . 30 . 180 . . . . . . . . . . Disable Machine 555 | . . . . . . 75 . . 30 60 60 30 105 . 30 165 . Destroy Structure 649 | . . . . . 33 19 . . 4 29 64 24 48 . 60 350 18 Partial Spotted 105 | . . . . . 15 . . . 45 . 30 15 . . . . . Lose Combat Pursuer 585 | . . . . . 15 15 . . 75 . 210 45 30 . 150 45 . Influence Decreases 7555 | . 9 105 . 10 576 777 531 123 192 435 559 654 842 1036 508 803 395 Entered New Map 2943 | . . . . . 52 251 277 123 . 125 139 294 212 1036 . 149 285 Time Decay 3842 | . 9 105 . 10 494 506 254 . 182 230 270 350 490 . 408 434 100 Lost Part 380 | . . . . . 30 10 . . . . . 10 . . 100 220 10 Lost Ally 240 | . . . . . . 10 . . 10 80 . . 140 . . . . Purge Threat 150 | . . . . . . . . . . . 150 . . . . . . Squads Dispatched 39 | . 1 . . . 3 2 . . 3 1 3 3 9 . 5 9 . Investigation 5 | . . . . . 1 1 . . . 1 . . 1 . 1 . . Extermination 13 | . . . . . . . . . 1 . 2 2 2 . 3 3 . Reinforcement 17 | . 1 . . . 2 1 . . 1 . 1 . 4 . 1 6 . Assault 3 | . . . . . . . . . . . . 1 2 . . . . Garrison 1 | . . . . . . . . . 1 . . . . . . . . Intercept . | . . . . . . . . . . . . . . . . . . Searches Triggered . | . . . . . . . . . . . . . . . . . . Construction Impeded 1 | . . . . . . . . . . . . . . . . 1 . Haulers Reinforced 2 | . . . . . . . . . . . 1 . . . . 1 . Active Scanning Responses . | . . . . . . . . . . . . . . . . . . Cargo Convoy Interrupts . | . . . . . . . . . . . . . . . . . . Stealth | -11 -10 -10 -10 -9 -8 -8 -8 -8 -6 -6 -5 -4 -4 -4 -3 -3 -2 --------- Run | Yrd Mat Min Exi Min Mat Sto Rec Scr Fac Ext Fac Fac Arm Lab Res Qua Res Distress Signals 16 | . 1 . . . 3 3 . . . 2 . 1 2 . 4 . . Communications Jammed . | . . . . . . . . . . . . . . . . . . Distress Signals . | . . . . . . . . . . . . . . . . . . Times Spotted 318 | . 5 4 1 4 50 29 . . 17 16 33 19 57 . 42 35 6 Peak Tracking Total 10 | . 4 2 10 4 6 4 . . 4 5 6 9 8 . 9 7 5 Tactical Retreats 20 | . . . . . 1 1 . . 3 . 7 1 1 . 5 1 . Traps | -11 -10 -10 -10 -9 -8 -8 -8 -8 -6 -6 -5 -4 -4 -4 -3 -3 -2 ------- Run | Yrd Mat Min Exi Min Mat Sto Rec Scr Fac Ext Fac Fac Arm Lab Res Qua Res Traps Triggered 13 | . 1 . . . 1 2 . . 2 3 . 1 2 . 1 . . Indirectly . | . . . . . . . . . . . . . . . . . . Trap Hack Attempts . | . . . . . . . . . . . . . . . . . . Triggered . | . . . . . . . . . . . . . . . . . . Disarmed . | . . . . . . . . . . . . . . . . . . Reprogrammed . | . . . . . . . . . . . . . . . . . . Reused . | . . . . . . . . . . . . . . . . . . Traps Extracted . | . . . . . . . . . . . . . . . . . . Installed . | . . . . . . . . . . . . . . . . . . Triggered . | . . . . . . . . . . . . . . . . . . Machines | -11 -10 -10 -10 -9 -8 -8 -8 -8 -6 -6 -5 -4 -4 -4 -3 -3 -2 ---------- Run | Yrd Mat Min Exi Min Mat Sto Rec Scr Fac Ext Fac Fac Arm Lab Res Qua Res Machines Disabled 44 | . . . 3 . . 5 . . 2 4 4 2 7 3 2 12 . Max in Single Turn 2 | . . . 2 . . 1 . . 1 2 2 1 1 1 1 2 . Garrison Access 3 | . . . . . 1 . . . . . . . . . 2 . . Energy Cycler 1 | . . . . . . . . . . 1 . . . . . . . Machines Repaired . | . . . . . . . . . . . . . . . . . . Machines Dismantled . | . . . . . . . . . . . . . . . . . . Machines Sabotaged . | . . . . . . . . . . . . . . . . . . Overloaded Fab Kills . | . . . . . . . . . . . . . . . . . . Hacking | -11 -10 -10 -10 -9 -8 -8 -8 -8 -6 -6 -5 -4 -4 -4 -3 -3 -2 --------- Run | Yrd Mat Min Exi Min Mat Sto Rec Scr Fac Ext Fac Fac Arm Lab Res Qua Res Machines Accessed 75 | . 3 1 2 . 7 7 10 1 11 8 8 6 3 . 7 1 . Terminals 42 | . 3 . . . 3 7 4 . 4 7 5 4 1 . 3 1 . Fabricators 7 | . . . . . . . . . 1 . 2 2 2 . . . . Repair Stations 6 | . . . . . 2 . . . 3 . . . . . 1 . . Recycling Units 8 | . . . . . 1 . 6 . . 1 . . . . . . . Scanalyzers 2 | . . . . . . . . . 1 . . . . . 1 . . Garrison Access 6 | . . . . . 1 . . . 2 . 1 . . . 2 . . Total Hacks 155 | . 7 1 2 . 21 16 20 1 22 14 15 16 4 . 15 1 . Successful 76 | . 2 1 2 . 10 13 12 1 5 4 6 10 1 . 9 . . Failed 79 | . 5 . . . 11 3 8 . 17 10 9 6 3 . 6 1 . Catastrophic 14 | . . . . . 2 . . . 3 3 4 1 . . 1 . . Database Lockouts . | . . . . . . . . . . . . . . . . . . Manual 63 | . 4 . 1 . 10 15 14 . 5 5 2 6 . . 1 . . Terminals 93 | . 7 . . . 10 16 11 . 9 13 9 10 1 . 6 1 . Fabricators 14 | . . . . . . . . . 2 . 3 6 3 . . . . Repair Stations 18 | . . . . . 8 . . . 7 . . . . . 3 . . Recycling Units 11 | . . . . . 1 . 9 . . 1 . . . . . . . Scanalyzers 3 | . . . . . . . . . 1 . . . . . 2 . . Garrison Access 12 | . . . . . 2 . . . 3 . 3 . . . 4 . . Terminal Hacks 35 | . . 1 2 . 2 7 4 1 1 3 5 5 . . 4 . . Record 3 | . . . 1 . . . . 1 . . . 1 . . . . . Part Schematic 1 | . . . . . . . . . . . . 1 . . . . . Prototype ID Bank 8 | . . . . . 1 4 1 . . . 2 . . . . . . Open Door 5 | . . 1 . . . 1 . . . 2 . . . . 1 . . Level Access Points 1 | . . . . . . . . . . . . . . . 1 . . Branch Access Points 3 | . . . . . 1 . . . 1 . . 1 . . . . . Repair Station Index 1 | . . . . . . . . . . . . . . . 1 . . Alert Level 1 | . . . . . . . 1 . . . . . . . . . . Unreport Threat 1 | . . . . . . . . . . . 1 . . . . . . Locate Traps 2 | . . . . . . . . . . . 1 1 . . . . . Security Status 1 | . . . . . . . . . . 1 . . . . . . . Hauler Manifests 1 | . . . . . . 1 . . . . . . . . . . . Zone Layout 6 | . . . . . . 1 2 . . . 1 1 . . 1 . . Proto ID Catalog 1 | . . . 1 . . . . . . . . . . . . . . Fabricator Hacks 5 | . . . . . . . . . . . 1 3 1 . . . . Network Status 3 | . . . . . . . . . . . 1 1 1 . . . . Load Schematic 1 | . . . . . . . . . . . . 1 . . . . . Build 1 | . . . . . . . . . . . . 1 . . . . . Repair Station Hacks 8 | . . . . . 4 . . . 3 . . . . . 1 . . Scan Component 5 | . . . . . 2 . . . 2 . . . . . 1 . . Repair 3 | . . . . . 2 . . . 1 . . . . . . . . Recycling Unit Hacks 1 | . . . . . . . . . . 1 . . . . . . . Report Inventory 1 | . . . . . . . . . . 1 . . . . . . . Scanalyzer 2 | . . . . . . . . . . . . . . . 2 . . Insert Component 2 | . . . . . . . . . . . . . . . 2 . . Garrison Access Hacks 3 | . . . . . 1 . . . . . . . . . 2 . . Seal Access 3 | . . . . . 1 . . . . . . . . . 2 . . Unauthorized Hacks 22 | . 2 . . . 3 6 8 . 1 . . 2 . . . . . Terminals 15 | . 2 . . . 2 6 2 . 1 . . 2 . . . . . Assimilate 2 | . . . . . . 1 . . 1 . . . . . . . . Botnet 13 | . 2 . . . 2 5 2 . . . . 2 . . . . . Fabricators . | . . . . . . . . . . . . . . . . . . Repair Stations . | . . . . . . . . . . . . . . . . . . Recycling Units 7 | . . . . . 1 . 6 . . . . . . . . . . Tunnel 7 | . . . . . 1 . 6 . . . . . . . . . . Scanalyzers . | . . . . . . . . . . . . . . . . . . Garrison Access . | . . . . . . . . . . . . . . . . . . Data Cores Recovered 2 | . . . . . . . . . . 1 . 1 . . . . . Used 1 | . . . . . . . . . . 1 . . . . . . . Hacking Detections 52 | . 3 . . . 4 5 4 . 10 5 6 5 3 . 6 1 . Full Trace Events 2 | . . . . . . . . . . 1 . . . . 1 . . Feedback Events . | . . . . . . . . . . . . . . . . . . Feedback Blocked . | . . . . . . . . . . . . . . . . . . Robot Schematics Acquired 3 | . . . . . . . . . . . . . . . . 3 . Robots Built . | . . . . . . . . . . . . . . . . . . Authchips . | . . . . . . . . . . . . . . . . . . Time . | . . . . . . . . . . . . . . . . . . Total Robot Build Rating . | . . . . . . . . . . . . . . . . . . Part Schematics Acquired 2 | . . . . . . . . . . . . 1 . . . 1 . Parts Built 2 | . . . . . . . . . . . . 2 . . . . . Authchips 1 | . . . . . . . . . . . . 1 . . . . . Time 58 | . . . . . . . . . . . . 58 . . . . . Total Part Build Rating 14 | . . . . . . . . . . . . 14 . . . . . Part Studies Acquired . | . . . . . . . . . . . . . . . . . . Parts Repaired 2 | . . . . . 1 . . . 1 . . . . . . . . Time 74 | . . . . . 44 . . . 30 . . . . . . . . Parts Recycled . | . . . . . . . . . . . . . . . . . . Recycled Matter . | . . . . . . . . . . . . . . . . . . Retrieved Matter . | . . . . . . . . . . . . . . . . . . Retrieved Components . | . . . . . . . . . . . . . . . . . . Parts Scanalyzed . | . . . . . . . . . . . . . . . . . . Part Schematics Acquired . | . . . . . . . . . . . . . . . . . . Parts Damaged . | . . . . . . . . . . . . . . . . . . Bothacking | -11 -10 -10 -10 -9 -8 -8 -8 -8 -6 -6 -5 -4 -4 -4 -3 -3 -2 ------------ Run | Yrd Mat Min Exi Min Mat Sto Rec Scr Fac Ext Fac Fac Arm Lab Res Qua Res Used RIF Installer . | . . . . . . . . . . . . . . . . . . Robots Hacked 2 | . . . . . . . . . . . 1 1 . . . . . Non-combat 2 | . . . . . . . . . . . 1 1 . . . . . Combat . | . . . . . . . . . . . . . . . . . . Robot Hacks Applied 2 | . . . . . . . . . . . 1 1 . . . . . find_chute 2 | . . . . . . . . . . . 1 1 . . . . . Relay Couplers Released . | . . . . . . . . . . . . . . . . . . Fabnet Peak Effective % . | . . . . . . . . . . . . . . . . . . Robots Rewired 12 | . . . . . . . . . . . . . 12 . . . . Allies Hacked 1 | . . . . . . . . . . . . . 1 . . . . Hacks Repelled . | . . . . . . . . . . . . . . . . . . Allies | -11 -10 -10 -10 -9 -8 -8 -8 -8 -6 -6 -5 -4 -4 -4 -3 -3 -2 -------- Run | Yrd Mat Min Exi Min Mat Sto Rec Scr Fac Ext Fac Fac Arm Lab Res Qua Res Total Allies 19 | . . . . . . 1 . . 1 5 . . 12 . . . . Largest Group 12 | . . . . . . 1 . . 1 5 . . 12 . . . . Highest-Rated Group 636 | . . . . . . 9 . . 10 146 . . 636 . . . . Highest-Rated Ally 56 | . . . . . . 9 . . 10 39 . . 56 . . . . Total Orders . | . . . . . . . . . . . . . . . . . . Ally Attacks 118 | . . . . . . . . . . 13 . . 105 . . . . Total Damage 3271 | . . . . . . . . . . 73 . . 3198 . . . . Kills 16 | . . . . . . . . . . 1 . . 15 . . . . Allies Corrupted 2 | . . . . . . . . . . . . . 2 . . . . Allies Melted . | . . . . . . . . . . . . . . . . . . Intel | -11 -10 -10 -10 -9 -8 -8 -8 -8 -6 -6 -5 -4 -4 -4 -3 -3 -2 ------- Run | Yrd Mat Min Exi Min Mat Sto Rec Scr Fac Ext Fac Fac Arm Lab Res Qua Res Active Infowar (turns) 6389 | . . . . . . . . . 455 499 595 795 1275 180 1310 1076 204 Optics 6389 | . . . . . . . . . 455 499 595 795 1275 180 1310 1076 204 Sensors 3469 | . . . . . . . . . . . 262 638 957 147 878 406 181 Traps 2 | . . . . . . . . . 2 . . . . . . . . Robot Analysis Total . | . . . . . . . . . . . . . . . . . . Derelict Logs Recovered 2 | . . 2 . . . . . . . . . . . . . . . Drone Launches . | . . . . . . . . . . . . . . . . . . Drone Recoveries . | . . . . . . . . . . . . . . . . . . Exploration | -11 -10 -10 -10 -9 -8 -8 -8 -8 -6 -6 -5 -4 -4 -4 -3 -3 -2 ------------- Run | Yrd Mat Min Exi Min Mat Sto Rec Scr Fac Ext Fac Fac Arm Lab Res Qua Res Turns Passed 11439 | 9 337 550 334 47 1310 1375 547 460 470 499 595 795 1290 180 1361 1076 204 Spaces Moved 9894 | 5 276 413 277 27 661 834 471 398 925 1066 1333 911 587 109 703 786 112 Core . | . . . . . . . . . . . . . . . . . . Treads 28 | . . . . . . . . . . . . 12 . 15 1 . . Legs 590 | 4 . . . . . . . . . . . . . . . 474 112 Wheels 4971 | 1 276 413 277 27 661 834 471 398 5 . . 319 587 94 608 . . Hover . | . . . . . . . . . . . . . . . . . . Flight 4305 | . . . . . . . . . 920 1066 1333 580 . . 94 312 . Fastest Speed 20 | 100 100 115 115 115 100 115 115 115 20 20 20 20 110 110 39 31 140 Average Speed 77 | 116 114 115 117 115 115 115 115 115 24 25 25 54 112 117 113 88 140 Slowest Speed 270 | 120 115 115 130 115 120 145 115 115 115 26 26 180 130 162 270 170 140 Overloaded Moves 52 | . . . . . . . . . 4 12 36 . . . . . . Propulsion Burnouts . | . . . . . . . . . . . . . . . . . . Robots Hopped 43 | . . . . . . . . . 12 5 19 . . . 3 4 . Potential Cave-ins 3 | . . . . . . . . . . . . . 3 . . . . Cave-ins Triggered . | . . . . . . . . . . . . . . . . . . Exploration Rate (%) 46 | 2 56 74 61 13 69 71 91 35 28 74 34 21 49 77 28 57 5 Regions Visited 17 Branch Regions 10 Pre-discovered Areas 8 | . . . 1 . 1 . 6 . . . . . . . . . . Known Exits Taken 8 | . . . . . 1 . . . 1 . 1 1 1 1 1 1 . Unknown Exits Taken 9 | 1 1 1 1 1 . 1 1 1 . 1 . . . . . . . Scrap Searched 3 | . . 1 . . . . . 2 . . . . . . . . . Spaces Dug 160 | . . . . . 11 11 . . . . 4 . 26 . 13 87 8 Terrain Destroyed 419 | . . . 14 . 39 13 . . 2 25 36 16 27 . 27 212 8 Melee . | . . . . . . . . . . . . . . . . . . Projectile 114 | . . . . . . 2 . . 2 5 12 16 27 . 24 18 8 AOE 305 | . . . 14 . 39 11 . . . 20 24 . . . 3 194 . Terrain Rammed . | . . . . . . . . . . . . . . . . . . Walls Destroyed . | . . . . . . . . . . . . . . . . . . Machines Disabled . | . . . . . . . . . . . . . . . . . . Actions | -11 -10 -10 -10 -9 -8 -8 -8 -8 -6 -6 -5 -4 -4 -4 -3 -3 -2 --------- Run | Yrd Mat Min Exi Min Mat Sto Rec Scr Fac Ext Fac Fac Arm Lab Res Qua Res Total 12888 | 8 288 446 282 34 1002 1102 474 399 1158 1283 1562 1205 1166 147 1152 1043 137 Wait 1342 | . . . . . 93 77 . . 161 127 129 170 287 7 242 49 . Move 9793 | 4 275 412 276 26 660 833 470 397 901 1055 1294 910 586 108 696 778 112 Hop 41 | . . . . . . . . . 11 5 19 . . . 3 3 . Pick Up 102 | . 4 3 2 3 27 13 1 . 11 2 4 14 3 4 7 4 . Fast Attach 100 | . 1 . . . 12 1 . . 5 . 7 10 4 . 17 39 4 Attach 66 | . 1 2 . . 7 . . . 11 1 4 9 . . 14 15 2 Detach 59 | . 1 1 . . 7 . . . 4 1 2 6 1 . 12 24 . Swap 168 | 2 . 5 1 1 28 25 . 2 8 2 8 13 39 3 23 8 . Drop 165 | 2 1 2 1 . 38 21 1 . 20 2 10 14 6 5 17 24 1 Fire 882 | . 5 21 2 4 130 132 2 . 26 58 85 58 114 20 113 94 18 Melee 4 | . . . . . . . . . . . . 1 . . . 3 . Ram . | . . . . . . . . . . . . . . . . . . Kick 2 | . . . . . . . . . . . . . . . . 2 . Crush . | . . . . . . . . . . . . . . . . . . Escape Stasis 38 | . . . . . . . . . . 30 . . . . 8 . . Rewire 126 | . . . . . . . . . . . . . 126 . . . . Trap . | . . . . . . . . . . . . . . . . . . Miscellaneous . | . . . . . . . . . . . . . . . . . . Route ------- -11/Scrapyard -10/Materials (discovered 4 exits: *Mat / *Min x2 / [*Sub]) -10/Mines (discovered 3 exits: *Mat x2 / *Exi) -10/Exiles -9/Mines -8/Materials (discovered 3 exits: [*Fac] / *Sto x2) -8/Storage -8/Recycling (discovered 2 exits: *Fac / *Scr) -8/Scraptown -6/Factory (discovered 6 exits: *Fac x2 / Low x2 / *Ext x2) -6/Extension (discovered 3 exits: *Fac x2 / [*Cet]) -5/Factory (discovered 2 exits: *Fac / *Upp) -4/Factory (discovered 3 exits: Upp x2 / *Arm) -4/Armory -4/Lab -3/Research (discovered 4 exits: Res x3 / *Qua) -3/Quarantine -2/Research History --------- Turn | Location | Event 1 | -11/Scrapyard | Discovered new exit (range 2) 10 | -11/Scrapyard | Entered Materials 214 | -10/Materials | Discovered new exit (range 12) 259 | -10/Materials | Discovered new exit (range 7) 306 | -10/Materials | Discovered new exit (range 15) 315 | -10/Materials | Build established: Mutant 343 | -10/Materials | Discovered new exit (range 16) 347 | -10/Materials | Entered Mines 350 | -10/Mines | Met a Derelict bent on vengeance 451 | -10/Mines | Found the Drone Emporium 458 | -10/Mines | Found Prototype Device 458 | -10/Mines | Identified Sensor Drone Bay 522 | -10/Mines | Identified exit to Materials 628 | -10/Mines | Discovered exit to Materials (range 6) 633 | -10/Mines | Learned location of 1 exit from Materials 785 | -10/Mines | Received a Rocket Launcher from a helpful Derelict 891 | -10/Mines | Deemed a non-threat by the Exiles lab entrance 892 | -10/Mines | Discovered new exit (range 5) 897 | -10/Mines | Entered Exiles 925 | -10/Exiles | Met 8R-AWN 945 | -10/Exiles | Met EX-HEX 991 | -10/Exiles | Met EX-DEC 996 | -10/Exiles | Learned location of Zion (-7) 1017 | -10/Exiles | Met EX-BIN 1035 | -10/Exiles | Aligned with FarCom system 1037 | -10/Exiles | Given EX-Vault access code 1064 | -10/Exiles | Opened EX-Vault 1072 | -10/Exiles | Found XL Autogun Array 1094 | -10/Exiles | Warned to stay clear of 0b10 Research branches 1208 | -10/Exiles | Attacked by the Exiles 1221 | -10/Exiles | Discovered new exit (range 10) 1231 | -10/Exiles | Left Exiles lab with XL Autogun Array 1231 | -10/Exiles | Entered Mines 1251 | -9/Mines | Discovered new exit (range 5) 1278 | -9/Mines | Entered Materials 1278 | -8/Materials | Evolved 4 slots: Propulsion x2, Utility x2 1279 | -8/Materials | Identified exit to Storage 1602 | -8/Materials | Repaired Broken Com. Wheel 1702 | -8/Materials | Build established: Scavenger-Mutant 2460 | -8/Materials | Discovered new exit (range 16) 2588 | -8/Materials | Entered Storage 2695 | -8/Storage | Build established: Mutant 3779 | -8/Storage | Core integrity fell below 50% 3959 | -8/Storage | Used back door to open Recycling access 3959 | -8/Storage | Discovered new exit (range 5) 3963 | -8/Storage | Entered Recycling 4283 | -8/Recycling | Discovered new exit (range 15) 4480 | -8/Recycling | Scanned before Scraplab entrance 4496 | -8/Recycling | Entered Scraplab 4506 | -8/Recycling | Discovered new exit (range 3) 4510 | -8/Recycling | Entered Scraptown 4510 | -8/Scraptown | System corruption cleaned by C-Scrubber 4646 | -8/Scraptown | Visited Symbiants 4694 | -8/Scraptown | Visited Junk Repository 4766 | -8/Scraptown | Visited IN-MT5's Study 4777 | -8/Scraptown | Visited Cyclists 4820 | -8/Scraptown | Visited CPS Storage 4845 | -8/Scraptown | Turned away by UFD registrar 4916 | -8/Scraptown | Discovered new exit (range 9) 4970 | -8/Scraptown | Entered Factory 4970 | -6/Factory | Evolved 4 slots: Propulsion x1, Utility x1, Weapon x2 5041 | -6/Factory | Spotted B-75 Beast 5084 | -6/Factory | Identified exit to Lower Caves 5084 | -6/Factory | Identified exit to Extension 5303 | -6/Factory | Repaired Imp. VTOL Module 5306 | -6/Factory | Discovered new exit (range 8) 5384 | -6/Factory | Discovered new exit (range 19) 5385 | -6/Factory | Garrison activated, responded to threat 5440 | -6/Factory | Entered Extension 5450 | -6/Extension | Rescued a captive Derelict 5485 | -6/Extension | Rescued a captive Derelict 5560 | -6/Extension | Spotted B-75 Beast 5605 | -6/Extension | Energy Cycler disabled 5605 | -6/Extension | Rescued a captive Derelict 5605 | -6/Extension | Rescued a captive Derelict 5605 | -6/Extension | Rescued a captive Derelict 5605 | -6/Extension | Rescued a captive Derelict 5608 | -6/Extension | Build established: Sprinter 5609 | -6/Extension | Rescued a captive Derelict 5609 | -6/Extension | Rescued a captive Derelict 5611 | -6/Extension | Rescued a captive Derelict 5804 | -6/Extension | Lost 4 allies 5866 | -6/Extension | Destroyed B-75 Beast 5888 | -6/Extension | Discovered new exit (range 19) 5908 | -6/Extension | Extracted ID and sensor layout for unrecognized location from A7's data core 5920 | -6/Extension | Destroyed 8 combat bots 5928 | -6/Extension | Discovered new exit (range 20) 5928 | -6/Extension | Discovered new exit (range 19) 5939 | -6/Extension | Entered Factory 5939 | -5/Factory | Evolved 2 slots: Propulsion x1, Utility x1 6176 | -5/Factory | Spotted B-75 Beast 6179 | -5/Factory | Discovered new exit (range 8) 6200 | -5/Factory | Identified exit to Upper Caves 6505 | -5/Factory | Discovered new exit (range 15) 6534 | -5/Factory | Identified exit to Factory 6534 | -5/Factory | Entered another Factory area 6534 | -4/Factory | Evolved 2 slots: Power x1, Utility x1 6630 | -4/Factory | Identified exit to Upper Caves 6630 | -4/Factory | Identified exit to Armory 6739 | -4/Factory | Fabricated Centrium Wheel? 7284 | -4/Factory | First assault squad dispatched 7329 | -4/Factory | Entered Armory 7688 | -4/Armory | Lost 4 allies 7700 | -4/Armory | Spotted B-86 Titan 7731 | -4/Armory | Build established: Commander-Skirmisher 7803 | -4/Armory | Lost 3 allies 7829 | -4/Armory | First assault squad dispatched 8615 | -4/Armory | Discovered new exit (range 3) 8618 | -4/Armory | Identified exit to Lab 8619 | -4/Armory | Entered Lab 8621 | -4/Lab | Discovered new exit (range 9) 8632 | -4/Lab | Identified exit to Research 8639 | -4/Lab | Hidden lab's door opened automatically 8639 | -4/Lab | Sensor layout match revealed 8640 | -4/Lab | Gained access to the hidden lab's interior 8705 | -4/Lab | Found Alien Artifact 8712 | -4/Lab | Found Alien Artifact 8744 | -4/Lab | Found Prototype Protection 8747 | -4/Lab | Found Prototype Hackware 8799 | -4/Lab | Entered Research 8799 | -3/Research | Evolved 2 slots: Utility x2 8956 | -3/Research | Build established: Skirmisher 8970 | -3/Research | Identified Core Expander 8970 | -3/Research | Installed Core Expander, added new Weapon slot 8971 | -3/Research | Identified Integrated Mediator 8971 | -3/Research | Installed Integrated Mediator, increased core attachment efficiency 8994 | -3/Research | Identified Med. Regenerative Plating 9009 | -3/Research | Found Prototype Protection 9023 | -3/Research | Identified Deep Network Scanner 9024 | -3/Research | Identified Centrium Heavy Armor Plating 9037 | -3/Research | Found Centrium Heavy Armor Plating 9083 | -3/Research | Found Centrium Heavy Armor Plating 9159 | -3/Research | Found Prototype Processor 9492 | -3/Research | Spotted B-86 Titan 9505 | -3/Research | Identified Spectral Analyzer 9891 | -3/Research | Identified exit to Research 9976 | -3/Research | System corruption reached 10% 10029 | -3/Research | Found Prototype Processor 10029 | -3/Research | Identified Exp. Targeting Computer 10051 | -3/Research | Lost 5 parts (1p2n2w) 10157 | -3/Research | Discovered new exit (range 9) 10159 | -3/Research | Identified exit to Quarantine 10160 | -3/Research | Entered Quarantine 10191 | -3/Quarantine | Found Fusion Bomb Launcher 10406 | -3/Quarantine | Lost 7 parts (1p2n2u2w) 10407 | -3/Quarantine | Destroyed 8 combat bots 10847 | -3/Quarantine | Spotted Alpha 7 10910 | -3/Quarantine | Destroyed Alpha 7 10910 | -3/Quarantine | Core integrity fell below 50% 10939 | -3/Quarantine | Lost 7 parts (1p1n2u3w) 10954 | -3/Quarantine | Found Prototype Processor 10954 | -3/Quarantine | Identified Exp. Target Analyzer 10980 | -3/Quarantine | Found Alien Impact Weapon 10980 | -3/Quarantine | Identified Core Stripper 11065 | -3/Quarantine | Found Alien Artifact 11065 | -3/Quarantine | Identified Phase Redirector 11122 | -3/Quarantine | Discovered exit to Research (range 19) 11132 | -3/Quarantine | Found Alien Slashing Weapon 11132 | -3/Quarantine | Identified Sigix Broadsword 11147 | -3/Quarantine | Lost 3 parts (1p2w) 11151 | -3/Quarantine | Cryocooling Duct disabled 11154 | -3/Quarantine | Cryocooling Duct disabled 11156 | -3/Quarantine | Scanned by Researcher 11166 | -3/Quarantine | Ambient heat levels rising (+20) 11166 | -3/Quarantine | Non-combat units ordered to evacuate 11169 | -3/Quarantine | Ambient heat levels rising (+20) 11169 | -3/Quarantine | Combat units ordered to evacuate 11191 | -3/Quarantine | Build established: Hacker-Mutant 11236 | -3/Quarantine | Entered Research 11236 | -2/Research | Evolved 2 slots: Utility x2 11237 | -2/Research | Lost 4 parts (2u2w) 11440 | -2/Research | Self-destructed Last Messages --------------- Ion Engine, Broken Recalibrator, Machine Analyzer. 11234_ R-10 Processor heat damages Imp. Ion Engine, Unknown Storage, Broken Field Recycling Unit, Com. Wheel. 11235_ H-77 Assassin heat spikes uncontrollably. PARAMETERS=UTILITY+2 LOCATION=RESEARCH GOAL=ESCAPE 11253_ Acquired Lgt. Quantum Reactor. 11265_ ALERT: All DSF locations entering lockdown mode. 11309_ A-15 Conveyor destroyed. 11401_ Acquired Unknown Reactor. 11401_ Identified Quantum Reactor. 11408_ Acquired Enh. Quantum Rifle. 11432_ S-43 Plague destroyed. 11437_ Deep Network Scanner destroyed. 11438_ Dropped Hvy. Armored Exoskeleton. 11438_ Acquired Xenon Bombardment Thruster. Map ----- +----------------------------------------------------+ | ??????????????????????????????????????????????? | | ??????????????????????????????????????????????? | | ??????????????????????????????????????????????? | | ??????????????????????????????????????????????? | | ??????????????????????????????????????????????? | | ??????????????????????????????????????????????? | | ??????????????????????????????????????????????? | | ??????????????????????????????????????????????? | | ??????????????????????????????????????????????? | | ??????????????????????????????????????????????? | | ??????????????????????????????????????????????? | | ####??????????????????????????????????????????? | | #??????????????????????????????????????????? | | #??????????????????????????????????????????? | | #??????????????????????????????????????????? | | #??????????????????????????????????????????? | | #??????????????????????????????????????????? | | #??????????????????????????????????????????? | | ###############????????????????????????????? | | ^ #????????????????????????????? | | ! #????????????????????????????? | | ^ +??????##############????????? | | ^ =! """" #??????# #????????? | | =! """" ##??????#[= #????????? | | """" #???????#%* #????????? | | = ^ """" ####+####@= #????????? | | " #ss #????????? | | # s""" """ #????????? | | + =""" """ #????????? | | * # """ """ #????????? | | #################+##+# """ """ #????????? | | ##########"# # """ """ #????????? | | # "" # ??????????? | | # ## # ?????????? | | # ## ##############????????? | | # ## #?????????????????????? | | + ## #?????????????????????? | | # ## #?????????????????????? | | # ## #?????????????????????? | | # ############?????????????????????? | | ###########????????????????????????????????? | | #??????????????????????????????????????????? | | #??????????????????????????????????????????? | | #??????????????????????????????????????????? | | #??????????????????????????????????????????? | | #??????????????????????????????????????????? | | #??????????????????????????????????????????? | | ####??????????????????????????????????????????? | | ??????????????????????????????????????????????? | | ??????????????????????????????????????????????? | +----------------------------------------------------+ Best States ------------- Heat Dissipation 103 Energy Generation 45 Energy Capacity 725 Matter Stores 450 Matter Capacity 450 Sight Range 24 Robot Scan Range 16 Terrain Scan Density 10 Additional Mass Support 12 Armor Coverage 600 Weapon Cycling 25 Phase Shifting 10 Evasion (%) 80 Targeting Accuracy 8 Recoil Reduction 6 Offensive Hacking 25 Authchip Count 1 Item Schematics ----------------- Centrium Wheel | -4/Factory | Hacked Hvy. Proton Cannon | -3/Quarantine | Archive Robot Schematics ------------------ O-32 Director | -3/Quarantine | Archive B-74 Champion | -3/Quarantine | Archive W-44 Eye | -3/Quarantine | Archive Fabricated ------------ Centrium Wheel | x2 | -4/Factory | Authchip Repaired ---------- Com. Wheel | 6% | -8/Materials | Broken Imp. VTOL Module | 66% | -6/Factory Studied --------- None Alien Tech Used ----------------- Core Expander Integrated Mediator Core Stripper Phase Redirector Sigix Broadsword Achievements -------------- None Challenges ------------ None Game ------ Seed ChargeArmoredPropulsion Manual? 0 Play Time 03:19:41 Cumulative 278.5 hours Start 2026.05.03 @ 10:44:28 End 2026.05.03 @ 15:55:36 Sessions 3 Manual Loads 0 Difficulty Rogue Special Mode None Game No. 147 Rogue 147 Adventurer 0 Explorer 0 Win Type - Total 9 Types 5/0/2/1/0/0/0/1/0/0 Lore% 76 Gallery% 67 Achievement% 59 Wizard Run 0 Options --------- Layout 2 ASCII 0 Keyboard 1 Movement Arrows Keybinds 0 Fullscreen 2 Font 24/Terminus Map View 50x44 Zoom Use 0% Tactical HUD 1 Map Filters NONE Filters NONE Steam 1 RUN: 9e7ce8ea-f987-47cd-b958-3938f3e7d86b